fUSD/lending_fUSD_20240217
["ID","MTS","AMOUNT","RATE_DAILY","PERIOD"]
[314269152,1708131051159,-1277.06,0.0005178,60]
[314269153,1708131051168,-500.0,0.0005178,60]
[314269154,1708131051179,-500.0,0.0005178,60]
[314269155,1708131051189,-500.0,0.0005178,60]
[314269156,1708131051198,-840.59,0.0005178,60]
[314269157,1708131051209,-500.0,0.0005178,60]
[314269158,1708131051219,-500.0,0.0005178,60]
[314269159,1708131051228,-500.0,0.0005178,60]
[314269160,1708131051238,-3180.68,0.0005178,60]
[314269161,1708131051247,-8098.93,0.0005178,60]
[314269162,1708131051257,-500.0,0.0005178,60]
[314269163,1708131051266,-500.0,0.0005178,60]
[314269164,1708131051275,-500.0,0.0005178,60]
[314269165,1708131051285,-3674.72,0.0005178,60]
[314269166,1708131051294,-500.0,0.0005178,60]
[314269167,1708131051304,-561.34821807,0.0005178,60]
[314269168,1708131051314,-500.0,0.0005178,60]
[314269169,1708131051324,-627.44,0.0005178,60]
[314269170,1708131051333,-500.0,0.0005178,60]
[314269171,1708131051342,-662.41,0.0005178,60]
[314269172,1708131051352,-500.0,0.00051806,14]
[314269173,1708131051361,-10000.0,0.00052,120]
[314269174,1708131051371,-494.3200348,0.00052,5]
[314269175,1708131051380,-1935.7361904,0.00052028,29]
[314269176,1708131051389,-500.0,0.00052054,60]
[314269177,1708131051398,-500.0,0.00052054,60]
[314269178,1708131051412,-677.91,0.00052054,120]
[314269179,1708131051421,-187.6,0.00052054,60]
[314269180,1708131051430,-736.38,0.00052054,60]
[314269181,1708131051439,-500.0,0.00052054,60]
[314269182,1708131051449,-500.0,0.00052054,60]
[314269183,1708131051459,-500.0,0.00052054,60]
[314269184,1708131051468,-500.0,0.00052054,2]
[314269185,1708131051477,-480.24,0.00052054,60]
[314269186,1708131051487,-500.0,0.00052054,60]
[314269187,1708131051497,-1950.56,0.00052054,60]
[314269188,1708131051506,-500.0,0.00052054,60]
[314269189,1708131051515,-500.0,0.00052054,60]
[314269190,1708131051525,-500.0,0.00052054,60]
[314269191,1708131051537,-1028.22,0.00052054,60]
[314269192,1708131051547,-792.42,0.00052054,14]
[314269193,1708131051557,-617.78,0.00052054,60]
[314269194,1708131051566,-500.0,0.00052054,60]
[314269195,1708131051576,-2467.15,0.00052054,60]
[314269196,1708131051586,-500.0,0.00052054,60]
[314269197,1708131051595,-534.54,0.00052054,60]
[314269198,1708131051605,-747.86,0.00052054,2]
[314269199,1708131051614,-500.0,0.00052054,60]
[314269200,1708131051623,-500.0,0.00052054,60]
[314269201,1708131051633,-500.0,0.00052054,60]
[314269202,1708131051642,-500.0,0.00052054,60]
[314269203,1708131051651,-500.0,0.00052054,60]
[314269204,1708131051660,-602.38,0.00052054,60]
[314269205,1708131051669,-1714.77,0.00052054,60]
[314269206,1708131051679,-500.0,0.00052054,60]
[314269207,1708131051688,-500.0,0.00052054,60]
[314269208,1708131051697,-676.18,0.00052054,60]
[314269209,1708131051707,-500.0,0.00052054,60]
[314269210,1708131051716,-1450.49,0.00052054,60]
[314269211,1708131051726,-915.9,0.00052054,60]
[314269212,1708131051736,-500.0,0.00052054,60]
[314269213,1708131051746,-500.0,0.00052054,60]
[314269214,1708131051755,-802.55,0.00052054,60]
[314269215,1708131051765,-862.82,0.00052054,60]
[314269216,1708131051775,-680.86,0.00052054,60]
[314269217,1708131051785,-166.3396773,0.00052054,60]
[314269218,1708131051794,-500.0,0.00052054,60]
[314269219,1708131051804,-500.0,0.00052054,60]
[314269220,1708131051813,-500.0,0.00052054,60]
[314269221,1708131051822,-500.0,0.00052054,60]
[314269222,1708131051831,-1066.03,0.00052054,60]
[314269223,1708131051840,-500.0,0.00052054,60]
[314269224,1708131051850,-286.49,0.00052054,60]
[314269225,1708131051859,-843.26,0.00052054,60]
[314269226,1708131051869,-745.61,0.00052054,60]
[314269227,1708131051878,-1277.06,0.00052054,60]
[314269228,1708131051887,-500.0,0.00052054,60]
[314269229,1708131051897,-634.91,0.00052054,60]
[314269230,1708131051906,-500.0,0.00052054,60]
[314269231,1708131051915,-840.59,0.00052054,60]
[314269232,1708131051925,-500.0,0.00052054,60]
[314269233,1708131051935,-500.0,0.00052054,60]
[314269234,1708131051944,-500.0,0.00052054,60]
[314269235,1708131051953,-3180.68,0.00052054,60]
[314269236,1708131051963,-8098.93,0.00052054,60]
[314269237,1708131051973,-500.0,0.00052054,60]
[314269238,1708131051982,-500.0,0.00052054,60]
[314269239,1708131051991,-582.80512208,0.00052054,60]
[314269240,1708131052001,-3674.72,0.00052054,60]
[314269241,1708131052010,-228.706666,0.00052054,30]
[314269242,1708131052019,-500.0,0.00052054,60]
[314269243,1708131052029,-500.0,0.00052054,60]
[314269244,1708131052038,-500.0,0.00052054,60]
[314269245,1708131052048,-662.41,0.00052054,60]
[314269246,1708131052057,-500.0,0.00052055,120]
[314269247,1708131052066,-152.0,0.00052069,3]
[314269248,1708131052076,-152.66873982,0.00052093,52]
[314269249,1708131052086,-151.021788,0.00052148,54]
[314269250,1708131052095,-1394.02915863,0.00052175,14]
[314269251,1708131052105,-500.0,0.00052304,120]
[314269252,1708131052114,-163.0,0.00052307,120]
[314269253,1708131052123,-500.0,0.00052328,60]
[314269254,1708131052132,-500.0,0.00052328,60]
[314269255,1708131052141,-677.91,0.00052328,120]
[314269256,1708131052150,-736.38,0.00052328,60]
[314269257,1708131052159,-500.0,0.00052328,60]
[314269258,1708131052169,-500.0,0.00052328,60]
[314269259,1708131052178,-500.0,0.00052328,60]
[314269260,1708131052187,-500.0,0.00052328,2]
[314269261,1708131052196,-500.0,0.00052328,60]
[314269262,1708131052206,-1950.56,0.00052328,60]
[314269263,1708131052215,-500.0,0.00052328,60]
[314269264,1708131052223,-500.0,0.00052328,60]
[314269265,1708131052233,-500.0,0.00052328,60]
[314269266,1708131052242,-1028.22,0.00052328,60]
[314269267,1708131052251,-792.42,0.00052328,14]
[314269268,1708131052261,-617.78,0.00052328,60]
[314269269,1708131052270,-500.0,0.00052328,60]
[314269270,1708131052279,-2467.15,0.00052328,60]
[314269271,1708131052288,-500.0,0.00052328,60]
[314269272,1708131052298,-534.54,0.00052328,60]
[314269273,1708131052308,-747.86,0.00052328,2]
[314269274,1708131052318,-500.0,0.00052328,60]
[314269275,1708131052327,-500.0,0.00052328,60]
[314269276,1708131052336,-500.0,0.00052328,60]
[314269277,1708131052346,-500.0,0.00052328,60]
[314269278,1708131052355,-500.0,0.00052328,60]
[314269279,1708131052364,-602.38,0.00052328,60]
[314269280,1708131052374,-1714.77,0.00052328,60]
[314269281,1708131052383,-500.0,0.00052328,60]
[314269282,1708131052392,-500.0,0.00052328,60]
[314269283,1708131052405,-676.18,0.00052328,60]
[314269284,1708131052415,-456.97,0.00052328,60]
[314269285,1708131052424,-1450.49,0.00052328,60]
[314269286,1708131052433,-915.9,0.00052328,60]
[314269287,1708131052442,-500.0,0.00052328,60]
[314269288,1708131052453,-500.0,0.00052328,60]
[314269289,1708131052463,-802.55,0.00052328,60]
[314269290,1708131052472,-862.82,0.00052328,60]
[314269291,1708131052482,-680.86,0.00052328,60]
[314269292,1708131052491,-500.0,0.00052328,60]
[314269293,1708131052500,-482.85,0.00052328,60]
[314269294,1708131052510,-500.0,0.00052328,60]
[314269295,1708131052519,-500.0,0.00052328,60]
[314269296,1708131052528,-1066.03,0.00052328,60]
[314269297,1708131052537,-500.0,0.00052328,60]
[314269298,1708131052549,-843.26,0.00052328,60]
[314269299,1708131052558,-745.61,0.00052328,60]
[314269300,1708131052568,-1277.06,0.00052328,60]
[314269301,1708131052578,-500.0,0.00052328,60]
[314269302,1708131052587,-500.0,0.00052328,60]
[314269303,1708131052597,-840.59,0.00052328,60]
[314269304,1708131052606,-500.0,0.00052328,60]
[314269305,1708131052615,-500.0,0.00052328,60]
[314269306,1708131052625,-521.57845809,0.00052328,60]
[314269307,1708131052634,-3180.68,0.00052328,60]
[314269308,1708131052643,-8098.93,0.00052328,60]
[314269309,1708131052653,-354.4724299,0.00052328,60]
[314269310,1708131052662,-500.0,0.00052328,60]
[314269311,1708131052672,-3674.72,0.00052328,60]
[314269312,1708131052681,-500.0,0.00052328,60]
[314269313,1708131052691,-500.0,0.00052328,60]
[314269314,1708131052700,-500.0,0.00052328,60]
[314269315,1708131052709,-662.41,0.00052328,60]
[314269316,1708131052718,-302.0,0.0005238,4]
[314269317,1708131052727,-153.87,0.000524,7]
[314269318,1708131052737,-153.87,0.000524,7]
[314269319,1708131052746,-153.87,0.000524,7]
[314269320,1708131052756,-153.87,0.000524,7]
[314269321,1708131052766,-153.87,0.000524,7]
[314269322,1708131052776,-153.87,0.000524,7]
[314269323,1708131052785,-153.87,0.000524,7]
[314269324,1708131052796,-154.27,0.000524,7]
[314269325,1708131052806,-154.27,0.000524,7]
[314269326,1708131052815,-1935.135,0.00052509,120]
[314269327,1708131052824,-500.0,0.00052553,120]
[314269328,1708131052834,-326.23455361,0.00052582,2]
[314269329,1708131052843,-500.0,0.00052602,60]
[314269330,1708131052853,-500.0,0.00052602,60]
[314269331,1708131052862,-677.91,0.00052602,120]
[314269332,1708131052871,-736.38,0.00052602,60]
[314269333,1708131052881,-500.0,0.00052602,60]
[314269334,1708131052890,-500.0,0.00052602,60]
[314269335,1708131052900,-500.0,0.00052602,60]
[314269336,1708131052909,-500.0,0.00052602,2]
[314269337,1708131052918,-500.0,0.00052602,60]
[314269338,1708131052928,-1950.56,0.00052602,60]
[314269339,1708131052938,-500.0,0.00052602,60]
[314269340,1708131052947,-500.0,0.00052602,60]
[314269341,1708131052957,-500.0,0.00052602,60]
[314269342,1708131052967,-1028.22,0.00052602,60]
[314269343,1708131052976,-792.42,0.00052602,14]
[314269344,1708131052986,-617.78,0.00052602,60]
[314269345,1708131052995,-500.0,0.00052602,60]
[314269346,1708131053005,-2467.15,0.00052602,60]
[314269347,1708131053014,-500.0,0.00052602,60]
[314269348,1708131053023,-534.54,0.00052602,60]
[314269349,1708131053032,-747.86,0.00052602,2]
[314269350,1708131053042,-500.0,0.00052602,60]
[314269351,1708131053051,-500.0,0.00052602,60]
[314269352,1708131053061,-500.0,0.00052602,60]
[314269353,1708131053070,-245.79,0.00052602,60]
[314269354,1708131053079,-500.0,0.00052602,60]
[314269355,1708131053089,-602.38,0.00052602,60]
[314269356,1708131053098,-1714.77,0.00052602,60]
[314269357,1708131053107,-500.0,0.00052602,60]
[314269358,1708131053117,-500.0,0.00052602,60]
[314269359,1708131053126,-676.18,0.00052602,60]
[314269360,1708131053136,-1450.49,0.00052602,60]
[314269361,1708131053145,-915.9,0.00052602,60]
[314269362,1708131053155,-500.0,0.00052602,60]
[314269363,1708131053164,-500.0,0.00052602,60]
[314269364,1708131053173,-802.55,0.00052602,60]
[314269365,1708131053183,-862.82,0.00052602,60]
[314269366,1708131053192,-680.86,0.00052602,60]
[314269367,1708131053201,-500.0,0.00052602,60]
[314269368,1708131053211,-500.0,0.00052602,60]
[314269369,1708131053220,-500.0,0.00052602,60]
[314269370,1708131053229,-1066.03,0.00052602,60]
[314269371,1708131053238,-500.0,0.00052602,60]
[314269372,1708131053248,-843.26,0.00052602,60]
[314269373,1708131053257,-745.61,0.00052602,60]
[314269374,1708131053267,-1277.06,0.00052602,60]
[314269375,1708131053276,-500.0,0.00052602,60]
[314269376,1708131053285,-403.83,0.00052602,60]
[314269377,1708131053295,-840.59,0.00052602,60]
[314269378,1708131053305,-500.0,0.00052602,60]
[314269379,1708131053314,-500.0,0.00052602,60]
[314269380,1708131053323,-3180.68,0.00052602,60]
[314269381,1708131053332,-8098.93,0.00052602,60]
[314269382,1708131053342,-500.0,0.00052602,60]
[314269383,1708131053351,-3674.72,0.00052602,60]
[314269384,1708131053360,-500.0,0.00052602,60]
[314269385,1708131053369,-500.0,0.00052602,60]
[314269386,1708131053379,-500.0,0.00052602,60]
[314269387,1708131053388,-662.41,0.00052602,60]
[314269388,1708131053397,-594.8,0.00052615,2]
[314269389,1708131053410,-942.52,0.000527,4]
[314269390,1708131053419,-500.0,0.00052802,120]
[314269391,1708131053428,-163.0,0.00052855,120]
[314269392,1708131053437,-1935.7361904,0.00052875,30]
[314269393,1708131053447,-1351816.74255773,0.00052876,31]
[314269394,1708131053664,-399023.82155382,0.00052876,31]
[314269395,1708131053674,-500.0,0.00052876,60]
[314269396,1708131053683,-500.0,0.00052876,60]
[314269397,1708131053692,-677.91,0.00052876,120]
[314269398,1708131053701,-736.38,0.00052876,60]
[314269399,1708131053710,-500.0,0.00052876,60]
[314269400,1708131053719,-500.0,0.00052876,60]
[314269401,1708131053728,-500.0,0.00052876,60]
[314269402,1708131053738,-500.0,0.00052876,2]
[314269403,1708131053746,-500.0,0.00052876,60]
[314269404,1708131053756,-1950.56,0.00052876,60]
[314269405,1708131053765,-500.0,0.00052876,60]
[314269406,1708131053774,-500.0,0.00052876,60]
[314269407,1708131053783,-500.0,0.00052876,60]
[314269408,1708131053794,-1028.22,0.00052876,60]
[314269409,1708131053803,-792.42,0.00052876,14]
[314269410,1708131053813,-617.78,0.00052876,60]
[314269411,1708131053822,-500.0,0.00052876,60]
[314269412,1708131053832,-2467.15,0.00052876,60]
[314269413,1708131053841,-500.0,0.00052876,60]
[314269414,1708131053850,-534.54,0.00052876,60]
[314269415,1708131053860,-747.86,0.00052876,2]
[314269416,1708131053869,-500.0,0.00052876,60]
[314269417,1708131053879,-500.0,0.00052876,60]
[314269418,1708131053888,-500.0,0.00052876,60]
[314269419,1708131053898,-500.0,0.00052876,60]
[314269420,1708131053907,-602.38,0.00052876,60]
[314269421,1708131053916,-1714.77,0.00052876,60]
[314269422,1708131053926,-617.65663651,0.00052876,60]
[314269423,1708131053936,-500.0,0.00052876,60]
[314269424,1708131053945,-676.18,0.00052876,60]
[314269425,1708131053955,-1450.49,0.00052876,60]
[314269426,1708131053964,-915.9,0.00052876,60]
[314269427,1708131053973,-500.0,0.00052876,60]
[314269428,1708131053983,-500.0,0.00052876,60]
[314269429,1708131053992,-802.55,0.00052876,60]
[314269430,1708131054002,-862.82,0.00052876,60]
[314269431,1708131054011,-680.86,0.00052876,60]
[314269432,1708131054021,-500.0,0.00052876,60]
[314269433,1708131054030,-582.19,0.00052876,60]
[314269434,1708131054039,-500.0,0.00052876,60]
[314269435,1708131054050,-1066.03,0.00052876,60]
[314269436,1708131054059,-500.0,0.00052876,60]
[314269437,1708131054068,-843.26,0.00052876,60]
[314269438,1708131054078,-745.61,0.00052876,60]
[314269439,1708131054087,-1277.06,0.00052876,60]
[314269440,1708131054097,-500.0,0.00052876,60]
[314269441,1708131054106,-840.59,0.00052876,60]
[314269442,1708131054116,-436.53809064,0.00052876,60]
[314269443,1708131054125,-500.0,0.00052876,60]
[314269444,1708131054134,-3180.68,0.00052876,60]
[314269445,1708131054144,-8098.93,0.00052876,60]
[314269446,1708131054153,-500.0,0.00052876,60]
[314269447,1708131054163,-3674.72,0.00052876,60]
[314269448,1708131054172,-500.0,0.00052876,60]
[314269449,1708131054181,-500.0,0.00052876,60]
[314269450,1708131054190,-500.0,0.00052876,60]
[314269451,1708131054199,-662.41,0.00052876,60]
[314269452,1708131054208,-4185.59,0.00052957,117]
[314269453,1708131054217,-5000.0,0.00053,62]
[314269454,1708131054226,-3000.0,0.00053,47]
[314269455,1708131054235,-1528.63,0.00053,20]
[314269456,1708131054244,-10000.0,0.00053,120]
[314269457,1708131054254,-250.0,0.00053,90]
[314269458,1708131054264,-500.0,0.00053,30]
[314269459,1708131054273,-3000.0,0.00053,47]
[314269460,1708131054281,-5000.0,0.00053,62]
[314269461,1708131054291,-1394.02915863,0.00053013,14]
[314269462,1708131054301,-500.0,0.00053051,120]
[314269463,1708131054310,-151.021788,0.00053148,54]
[314269464,1708131054319,-500.0,0.0005315,60]
[314269465,1708131054328,-500.0,0.0005315,60]
[314269466,1708131054337,-677.91,0.0005315,120]
[314269467,1708131054346,-736.38,0.0005315,60]
[314269468,1708131054355,-500.0,0.0005315,60]
[314269469,1708131054364,-500.0,0.0005315,60]
[314269470,1708131054374,-500.0,0.0005315,60]
[314269471,1708131054383,-500.0,0.0005315,2]
[314269472,1708131054392,-500.0,0.0005315,60]
[314269473,1708131054403,-1950.56,0.0005315,60]
[314269474,1708131054414,-500.0,0.0005315,60]
[314269475,1708131054423,-500.0,0.0005315,60]
[314269476,1708131054433,-500.0,0.0005315,60]
[314269477,1708131054442,-1028.22,0.0005315,60]
[314269478,1708131054452,-792.42,0.0005315,14]
[314269479,1708131054462,-617.78,0.0005315,60]
[314269480,1708131054471,-647.97,0.0005315,60]
[314269481,1708131054480,-2467.15,0.0005315,60]
[314269482,1708131054490,-500.0,0.0005315,60]
[314269483,1708131054500,-534.54,0.0005315,60]
[314269484,1708131054509,-747.86,0.0005315,2]
[314269485,1708131054518,-500.0,0.0005315,60]
[314269486,1708131054527,-500.0,0.0005315,60]
[314269487,1708131054536,-500.0,0.0005315,60]
[314269488,1708131054546,-602.38,0.0005315,60]
[314269489,1708131054556,-1714.77,0.0005315,60]
[314269490,1708131054565,-500.0,0.0005315,60]
[314269491,1708131054575,-676.18,0.0005315,60]
[314269492,1708131054584,-1450.49,0.0005315,60]
[314269493,1708131054593,-915.9,0.0005315,60]
[314269494,1708131054602,-490.64,0.0005315,60]
[314269495,1708131054611,-500.0,0.0005315,60]
[314269496,1708131054620,-802.55,0.0005315,60]
[314269497,1708131054629,-862.82,0.0005315,60]
[314269498,1708131054638,-680.86,0.0005315,60]
[314269499,1708131054648,-500.0,0.0005315,60]
[314269500,1708131054657,-500.0,0.0005315,60]
[314269501,1708131054666,-1066.03,0.0005315,60]
[314269502,1708131054676,-500.0,0.0005315,60]
[314269503,1708131054685,-843.26,0.0005315,60]
[314269504,1708131054694,-745.61,0.0005315,60]
[314269505,1708131054703,-1277.06,0.0005315,60]
[314269506,1708131054712,-500.0,0.0005315,60]
[314269507,1708131054722,-840.59,0.0005315,60]
[314269508,1708131054731,-500.0,0.0005315,60]
[314269509,1708131054739,-3180.68,0.0005315,60]
[314269510,1708131054749,-8098.93,0.0005315,60]
[314269511,1708131054759,-500.0,0.0005315,60]
[314269512,1708131054768,-3674.72,0.0005315,60]
[314269513,1708131054777,-500.0,0.0005315,60]
[314269514,1708131054787,-415.22534201,0.0005315,60]
[314269515,1708131054796,-500.0,0.0005315,60]
[314269516,1708131054806,-662.41,0.0005315,60]
[314269517,1708131054815,-256.04986775,0.000532,120]
[314269518,1708131054824,-256.04986772,0.000532,120]
[314269519,1708131054833,-2432.0086193,0.00053253,2]
[314269520,1708131054842,-604.0,0.0005326,7]
[314269521,1708131054852,-500.0,0.000533,120]
[314269522,1708131054861,-526.24164145,0.00053385,14]
[314269523,1708131054870,-1048.69937975,0.00053385,14]
[314269524,1708131054880,-1000.0,0.000534,2]
[314269525,1708131054889,-50000.0,0.000534,120]
[314269526,1708131054898,-163.0,0.00053403,120]
[314269527,1708131054907,-500.0,0.00053424,60]
[314269528,1708131054917,-500.0,0.00053424,60]
[314269529,1708131054926,-677.91,0.00053424,120]
[314269530,1708131054935,-736.38,0.00053424,60]
[314269531,1708131054944,-493.21370028,0.00053424,60]
[314269532,1708131054953,-500.0,0.00053424,2]
[314269533,1708131054962,-500.0,0.00053424,60]
[314269534,1708131054971,-1950.56,0.00053424,60]
[314269535,1708131054981,-500.0,0.00053424,60]
[314269536,1708131054991,-386.16,0.00053424,60]
[314269537,1708131055001,-500.0,0.00053424,60]
[314269538,1708131055010,-1028.22,0.00053424,60]
[314269539,1708131055019,-792.42,0.00053424,14]
[314269540,1708131055029,-617.78,0.00053424,60]
[314269541,1708131055038,-2467.15,0.00053424,60]
[314269542,1708131055049,-500.0,0.00053424,60]
[314269543,1708131055058,-534.54,0.00053424,60]
[314269544,1708131055068,-747.86,0.00053424,2]
[314269545,1708131055078,-500.0,0.00053424,60]
[314269546,1708131055088,-602.38,0.00053424,60]
[314269547,1708131055098,-500.0,0.00053424,60]
[314269548,1708131055107,-1714.77,0.00053424,60]
[314269549,1708131055117,-588.70374912,0.00053424,60]
[314269550,1708131055127,-676.18,0.00053424,60]
[314269551,1708131055137,-1450.49,0.00053424,60]
[314269552,1708131055146,-915.9,0.00053424,60]
[314269553,1708131055155,-500.0,0.00053424,60]
[314269554,1708131055165,-802.55,0.00053424,60]
[314269555,1708131055174,-862.82,0.00053424,60]
[314269556,1708131055183,-680.86,0.00053424,60]
[314269557,1708131055192,-500.0,0.00053424,60]
[314269558,1708131055201,-500.0,0.00053424,60]
[314269559,1708131055210,-1066.03,0.00053424,60]
[314269560,1708131055220,-500.0,0.00053424,60]
[314269561,1708131055229,-843.26,0.00053424,60]
[314269562,1708131055239,-745.61,0.00053424,60]
[314269563,1708131055248,-1277.06,0.00053424,60]
[314269564,1708131055257,-500.0,0.00053424,60]
[314269565,1708131055266,-840.59,0.00053424,60]
[314269566,1708131055275,-500.0,0.00053424,60]
[314269567,1708131055285,-3180.68,0.00053424,60]
[314269568,1708131055294,-8098.93,0.00053424,60]
[314269569,1708131055304,-500.0,0.00053424,60]
[314269570,1708131055313,-3674.72,0.00053424,60]
[314269571,1708131055323,-500.0,0.00053424,60]
[314269572,1708131055332,-500.0,0.00053424,60]
[314269573,1708131055341,-662.41,0.00053424,60]
[314269574,1708131055350,-500.0,0.00053549,120]
[314269575,1708131055359,-463.27,0.00053628,120]
[314269576,1708131055369,-404.92133194,0.00053695,2]
[314269577,1708131055378,-500.0,0.00053698,2]
[314269578,1708131055387,-500.0,0.00053698,2]
[314269579,1708131055396,-500.0,0.00053698,2]
[314269580,1708131055410,-500.0,0.00053698,2]
[314269581,1708131055419,-500.0,0.00053698,2]
[314269582,1708131055428,-500.0,0.00053698,2]
[314269583,1708131055437,-500.0,0.00053698,2]
[314269584,1708131055446,-500.0,0.00053698,2]
[314269585,1708131055458,-500.0,0.00053698,2]
[314269586,1708131055479,-500.0,0.00053698,2]
[314269587,1708131055492,-500.0,0.00053698,2]
[314269588,1708131055501,-500.0,0.00053698,2]
[314269589,1708131055511,-500.0,0.00053698,2]
[314269590,1708131055520,-500.0,0.00053698,2]
[314269591,1708131055529,-500.0,0.00053698,2]
[314269592,1708131055538,-500.0,0.00053698,2]
[314269593,1708131055548,-500.0,0.00053698,2]
[314269594,1708131055557,-500.0,0.00053698,2]
[314269595,1708131055566,-500.0,0.00053698,2]
[314269596,1708131055575,-500.0,0.00053698,2]
[314269597,1708131055584,-500.0,0.00053698,2]
[314269598,1708131055594,-500.0,0.00053698,2]
[314269599,1708131055603,-500.0,0.00053698,2]
[314269600,1708131055612,-500.0,0.00053698,2]
[314269601,1708131055621,-500.0,0.00053698,2]
[314269602,1708131055630,-500.0,0.00053698,2]
[314269603,1708131055639,-500.0,0.00053698,2]
[314269604,1708131055648,-500.0,0.00053698,2]
[314269605,1708131055657,-500.0,0.00053698,2]
[314269606,1708131055666,-500.0,0.00053698,2]
[314269607,1708131055675,-500.0,0.00053698,2]
[314269608,1708131055684,-500.0,0.00053698,2]
[314269609,1708131055693,-500.0,0.00053698,2]
[314269610,1708131055702,-500.0,0.00053698,2]
[314269611,1708131055711,-500.0,0.00053698,2]
[314269612,1708131055720,-500.0,0.00053698,2]
[314269613,1708131055729,-500.0,0.00053698,2]
[314269614,1708131055737,-500.0,0.00053698,2]
[314269615,1708131055747,-500.0,0.00053698,2]
[314269616,1708131055755,-500.0,0.00053698,2]
[314269617,1708131055765,-500.0,0.00053698,2]
[314269618,1708131055774,-500.0,0.00053698,2]
[314269619,1708131055783,-500.0,0.00053698,2]
[314269620,1708131055792,-500.0,0.00053698,2]
[314269621,1708131055801,-500.0,0.00053698,2]
[314269622,1708131055810,-500.0,0.00053698,2]
[314269623,1708131055819,-500.0,0.00053698,2]
[314269624,1708131055829,-500.0,0.00053698,2]
[314269625,1708131055838,-500.0,0.00053698,2]
[314269626,1708131055848,-500.0,0.00053698,2]
[314269627,1708131055857,-500.0,0.00053698,2]
[314269628,1708131055866,-500.0,0.00053698,2]
[314269629,1708131055875,-500.0,0.00053698,2]
[314269630,1708131055884,-500.0,0.00053698,2]
[314269631,1708131055893,-500.0,0.00053698,2]
[314269632,1708131055903,-500.0,0.00053698,2]
[314269633,1708131055912,-500.0,0.00053698,2]
[314269634,1708131055921,-500.0,0.00053698,2]
[314269635,1708131055931,-500.0,0.00053698,2]
[314269636,1708131055940,-500.0,0.00053698,2]
[314269637,1708131055949,-500.0,0.00053698,2]
[314269638,1708131055958,-500.0,0.00053698,2]
[314269639,1708131055967,-500.0,0.00053698,2]
[314269640,1708131055976,-500.0,0.00053698,2]
[314269641,1708131055986,-500.0,0.00053698,2]
[314269642,1708131055995,-500.0,0.00053698,2]
[314269643,1708131056005,-474.1,0.00053698,60]
[314269644,1708131056014,-500.0,0.00053698,60]
[314269645,1708131056023,-677.91,0.00053698,120]
[314269646,1708131056033,-736.38,0.00053698,60]
[314269647,1708131056042,-500.0,0.00053698,2]
[314269648,1708131056052,-500.0,0.00053698,60]
[314269649,1708131056062,-1950.56,0.00053698,60]
[314269650,1708131056072,-496.6,0.00053698,60]
[314269651,1708131056081,-500.0,0.00053698,60]